fUSD/lending_fUSD_20240722
["ID","MTS","AMOUNT","RATE_DAILY","PERIOD"]
[332928469,1721682632250,-162.14215494,0.0001006,2]
[332928470,1721682632259,-615.35384106,0.0001026,2]
[332928471,1721682632319,-384.64615894,0.0001026,2]
[332928472,1721682632330,-136.79715324,0.0001026,2]
[332928473,1721682632343,-863.20284676,0.0001026,2]
[332928474,1721682632353,-1607.04012821,0.00010704,2]
[332928475,1721682632375,-1973.22629204,0.00010704,2]
[332928476,1721682632387,-7567.11357975,0.00010704,2]
[332928477,1721682632402,-250.0,0.00010713,2]
[332928478,1721682632412,-250.0,0.00010739,2]
[332928479,1721682632422,-150.0,0.00010776,2]
[332928480,1721682632432,-2023.53936545,0.00010777,2]
[332928481,1721682632444,-110.05395936,0.00010777,2]
[332928482,1721682632455,-340.84273268,0.00010777,2]
[332928483,1721682632466,-527.80695345,0.00010777,2]
[332928484,1721682632477,-12.68203413,0.00010777,2]
[332928485,1721682632489,-2528.77234828,0.00010777,2]
[332928486,1721682632500,-4643.77760157,0.00010777,2]
[332928487,1721682632510,-1000.0,0.00010951,2]
[332928488,1721682632520,-1500.0,0.00010959,5]
[332928489,1721682632530,-1000.0,0.00011082,2]
[332928490,1721682632543,-1000.0,0.00011082,2]
[332928491,1721682632554,-335.08803515,0.00011082,2]
[332928492,1721682632564,-1049.01515788,0.00011082,2]
[332928493,1721682632575,-155.0,0.00011105,2]
[332928494,1721682632586,-298.26312183,0.00011105,2]
[332928495,1721682632595,-202.63817161,0.00011105,2]
[332928496,1721682632606,-155.16204596,0.00011105,2]
[332928498,1721682632617,-371.51160251,0.00011105,2]
[332928500,1721682632628,-155.0,0.00011105,2]
[332928502,1721682632644,-692.53782461,0.00011105,2]
[332928504,1721682632655,-155.0,0.00011105,2]
[332928506,1721682632664,-155.12013379,0.00011105,2]
[332928508,1721682632675,-2876.90245145,0.00011105,2]
[332928510,1721682632686,-1259.17176074,0.00011105,2]
[332928512,1721682632696,-379.38490626,0.00011105,2]
[332928513,1721682632707,-293.7777716,0.00011105,2]
[332928514,1721682632718,-363.71380104,0.00011105,2]
[332928515,1721682632728,-213.25913164,0.00011105,2]
[332928516,1721682632739,-155.0,0.00011105,2]
[332928517,1721682632749,-277.22,0.00011155,2]
[332928518,1721682632759,-652.74964097,0.00011324,2]
[332928519,1721682632769,-187.414048,0.00011452,2]
[332928520,1721682632779,-892.0,0.00011781,2]
[332928521,1721682632790,-1141.5049,0.00011796,2]
[332928522,1721682632799,-1000.0,0.00011799,2]
[332928523,1721682632809,-6863.1678,0.000118,2]
[332928524,1721682632819,-169.84462218,0.000118,2]
[332928525,1721682632829,-497.4113957,0.000118,2]
[332928526,1721682632839,-222.21696831,0.000118,2]
[332928527,1721682632849,-633.46582986,0.000118,2]
[332928528,1721682632859,-344.775,0.000118,2]
[332928529,1721682632869,-162.9997957,0.000118,2]
[332928530,1721682632881,-178.29,0.00011808,2]
[332928531,1721682632892,-368.12250856,0.0001189,2]
[332928532,1721682632907,-368.12250856,0.0001189,2]
[332928533,1721682632918,-368.12250856,0.0001189,2]
[332928534,1721682632929,-9699.5986401,0.00011896,2]
[332928535,1721682632939,-102607.9562738,0.00011896,2]
[332928536,1721682632950,-18230.0315767,0.00011896,2]
[332928537,1721682632961,-1638.90014625,0.00011897,2]
[332928538,1721682632971,-150.0,0.00011899,2]
[332928539,1721682632981,-643045.96873157,0.000119,2]
[332928540,1721682632993,-5089.15586786,0.000119,2]
[332928541,1721682633006,-525.7141499,0.000119,2]
[332928542,1721682633039,-1579.80960355,0.000119,2]
[332928543,1721682633052,-8770.3115774,0.000119,2]
[332928544,1721682633065,-1528.35103245,0.000119,2]
[332928545,1721682633077,-2613.50210701,0.000119,2]
[332928546,1721682633106,-451.63886766,0.000119,2]
[332928547,1721682633118,-287.37338502,0.000119,2]
[332928548,1721682633129,-4982.1901667,0.000119,2]
[332928549,1721682633143,-635.1,0.000119,2]
[332928550,1721682633168,-263.47322908,0.000119,2]
[332928551,1721682633181,-1203.94252239,0.000119,2]
[332928552,1721682633194,-615.77052,0.000119,2]
[332928553,1721682633206,-496.77,0.000119,2]
[332928565,1721682638038,-515.28705452,0.000119,2]
[332928566,1721682638050,-1134.70787623,0.000119,2]
[332928567,1721682638061,-690.06061304,0.000119,2]
[332928568,1721682638072,-1631.36205756,0.000119,2]
[332928569,1721682638088,-916.92440523,0.000119,2]
[332928570,1721682638115,-12497.24843964,0.000119,2]
[332928571,1721682638126,-1041.06219095,0.000119,2]
[332928572,1721682638137,-761.7831046,0.000119,2]
[332928573,1721682638168,-307.07755376,0.000119,2]
[332928574,1721682638182,-5139.54579721,0.000119,2]
[332928575,1721682638193,-11038.11827129,0.000119,2]
[332928576,1721682638204,-5213.2416444,0.000119,2]
[332928577,1721682638215,-10057.58,0.000119,2]
[332928578,1721682638225,-3861.57904239,0.000119,2]
[332928579,1721682638265,-16175.0,0.000119,2]
[332928580,1721682638275,-70210.21145951,0.000119,2]
[332928581,1721682638286,-1167.56978197,0.000119,2]
[332928582,1721682638298,-7570.38815316,0.000119,2]
[332928583,1721682638333,-966.08314685,0.000119,2]
[332928584,1721682638344,-4852.6012,0.000119,2]
[332928585,1721682638356,-10535.96684458,0.000119,2]
[332928586,1721682638375,-721.40021139,0.000119,2]
[332928587,1721682638386,-442.25,0.000119,2]
[332928588,1721682638399,-23996.93107085,0.000119,2]
[332928710,1721682640079,-503.4787228,0.000119,2]
[332928711,1721682640091,-6448.8,0.000119,2]
[332928712,1721682640102,-4199.72311746,0.000119,2]
[332928713,1721682640113,-1079.800005,0.000119,2]
[332928903,1721682642068,-680.67,0.000119,2]
[332928910,1721682642130,-540.18000005,0.000119,2]
[332928913,1721682642141,-258.42003704,0.000119,2]
[332928915,1721682642157,-322.85018007,0.000119,2]
[332928919,1721682642192,-843.15773648,0.000119,2]
[332928922,1721682642203,-1036.6248,0.000119,2]
[332928928,1721682642256,-24104.6103854,0.000119,2]
[332928934,1721682642313,-3891.36684221,0.000119,2]
[332928941,1721682642372,-3482.59104684,0.000119,2]
[332928943,1721682642383,-1413.08096614,0.000119,2]
[332928946,1721682642394,-27940.88974367,0.000119,2]
[332929052,1721682643165,-352.625,0.00011275,2]
[332929055,1721682643175,-732.515985,0.000119,2]
[332929067,1721682643226,-297.59077079,0.000119,2]
[332929071,1721682643237,-67268.84094529,0.000119,2]
[332929074,1721682643249,-711.51228327,0.000119,2]
[332929084,1721682643292,-630.18302999,0.000119,2]
[332929087,1721682643304,-17592.58799307,0.000119,2]
[332929106,1721682643395,-1224.01061712,0.000119,2]
[332929108,1721682643406,-276.224985,0.000119,2]
[332929110,1721682643419,-630.83523011,0.000119,2]
[332929120,1721682643459,-21011.9297031,0.000119,2]
[332929139,1721682643570,-8205.81440267,0.000119,2]
[332929494,1721682647273,-891.59999964,0.000119,2]
[332929502,1721682647332,-1000.0,0.00011401,2]
[332929504,1721682647342,-2405.9984,0.000119,2]
[332929515,1721682647436,-679.900794,0.000119,2]
[332932828,1721682710171,200.0,8.632e-05,2]
[332932829,1721682710194,62.64,8.632e-05,2]
[332932830,1721683324381,5587.45972657,8.632e-05,2]
[332932831,1721683324402,2036.94027343,8.632e-05,2]
[332932846,1721683695578,7953.40076679,8.632e-05,2]
[332932914,1721683832458,-261.32,9.104e-05,2]
[332932915,1721683832467,-67.9624,0.0001026,2]
[332932916,1721683832616,-732.0376,0.0001026,2]
[332932917,1721683832628,-800.0,0.0001026,2]
[332932918,1721683832638,-1047.6287417,0.00010463,2]
[332932919,1721683832647,-1940.10124577,0.00010463,2]
[332932920,1721683838720,-1500.0,0.00010463,2]
[332932921,1721683838732,-1605.98,0.00010463,2]
[332932922,1721683838743,-13721.22367167,0.00010463,2]
[332932923,1721683838753,-414.02819189,0.00010463,2]
[332932924,1721683838762,-196.87533747,0.00010463,2]
[332932925,1721683838772,-219.18532429,0.00010463,2]
[332932926,1721683838783,-155.57454155,0.00010463,2]
[332932927,1721683838793,-267.35,0.0001055,2]
[332932928,1721683838802,-1500.0,0.00010959,5]
[332932929,1721683838812,-250.0,0.00010983,2]
[332932931,1721683838821,-1000.0,0.0001104,2]
[332932932,1721683838830,-800.0,0.00011082,2]
[332932934,1721683838839,-800.0,0.00011082,2]
[332932936,1721683838849,-652.74964097,0.00011105,2]
[332932938,1721683838859,-7405.6075882,0.00011105,2]
[332932940,1721683838868,-155.0,0.00011186,2]
[332932942,1721683838879,-155.0,0.00011186,2]
[332932944,1721683838891,-374.21,0.00011233,2]
[332932946,1721683838900,-999.99,0.00011233,2]
[332932948,1721683838909,-261.32,0.00011368,2]
[332932951,1721683838919,-3847.884959,0.00011452,2]
[332932954,1721683838929,-193.825583,0.00011452,2]
[332932957,1721683838939,-295.92509,0.00011452,2]
[332932959,1721683838948,-3870.32011,0.00011452,2]
[332932961,1721683838959,-164.436677,0.00011452,2]
[332932963,1721683838968,-3847.884959,0.00011595,2]
[332932966,1721683838977,-193.825583,0.00011595,2]
[332932968,1721683838987,-295.92509,0.00011595,2]
[332932969,1721683838995,-129.78569537,0.00011595,2]
[332932983,1721683839115,-909.2521557,0.00011595,2]
[332932986,1721683839136,-2831.28225893,0.00011595,2]
[332932988,1721683839145,-164.436677,0.00011595,2]
[332932989,1721683839155,-3847.884959,0.00011738,2]
[332932991,1721683839164,-193.825583,0.00011738,2]
[332932993,1721683839174,-295.92509,0.00011738,2]
[332932995,1721683839184,-2889.2555248,0.00011738,2]
[332932998,1721683839196,-981.0645852,0.00011738,2]
[332933000,1721683839205,-164.436677,0.00011738,2]
[332933002,1721683839215,-5890.88246431,0.00011781,2]
[332933014,1721683839326,-5818.07631874,0.00011781,2]
[332933016,1721683839336,-833.2043,0.00011796,2]
[332933018,1721683839347,-10308.1959,0.000118,2]
[332933019,1721683839356,-207.92410251,0.000118,2]
[332933021,1721683839366,-162.30891768,0.000118,2]
[332933023,1721683839376,-2500.0,0.000118,2]
[332933025,1721683839386,-221.64557463,0.000118,2]
[332933027,1721683839395,-298.52622468,0.000118,2]
[332933029,1721683839404,-2513.71886378,0.000118,2]
[332933030,1721683839413,-9424.20702246,0.000118,2]
[332933032,1721683839423,-220.31,0.00011808,2]
[332933034,1721683839432,-3847.884959,0.00011881,2]
[332933036,1721683839441,-193.825583,0.00011881,2]
[332933038,1721683839451,-295.92509,0.00011881,2]
[332933040,1721683839461,-3870.32011,0.00011881,2]
[332933042,1721683839471,-164.436677,0.00011881,2]
[332933044,1721683839480,-2814.01638409,0.00011888,2]
[332933046,1721683839489,-2402.079841,0.00011896,2]
[332933048,1721683839498,-14441.4830705,0.00011896,2]
[332933049,1721683839508,-95322.6289383,0.00011896,2]
[332933051,1721683839518,-5607.7758062,0.00011896,2]
[332933053,1721683839527,-223.5797409,0.00011896,2]
[332933055,1721683839537,-6677.2103725,0.00011896,2]
[332933057,1721683839546,-6307.408429,0.00011896,2]
[332933059,1721683839555,-54590.98629849,0.000119,2]
[332933061,1721683839567,-709.08266212,0.000119,2]
[332933063,1721683839579,-2713.35802244,0.000119,2]
[332933065,1721683839593,-1099.57675847,0.000119,2]
[332933163,1721683840577,-638.94040044,0.000119,2]
[332933329,1721683842346,-1915.64373984,0.000119,2]
[332933331,1721683842358,-462.7030002,0.000119,2]
[332933458,1721683843410,-6007.18279358,0.000119,2]
[332933461,1721683843422,-328.00238978,0.000119,2]
[332933467,1721683843474,-9315.48942614,0.000119,2]
[332933470,1721683843485,-32621.08850002,0.000119,2]
[332933491,1721683843678,-1830112.95102168,0.000119,2]
[332933926,1721683848322,-32592.01435,0.000119,2]
[332933930,1721683848366,-2309.9861644,0.000119,2]
[332933932,1721683848383,-1014.8698506,0.000119,2]
[332933934,1721683848396,-1578.49314389,0.000119,2]
[332936195,1721685032233,-235.18,9.053e-05,2]
[332936196,1721685032243,-3464.53568513,0.0001025,2]
[332936197,1721685032252,-700.0,0.0001026,2]
[332936198,1721685032262,-700.0,0.0001026,2]
[332936199,1721685032271,-800.0,0.00010931,2]
[332936200,1721685032292,-1500.0,0.00010959,5]
[332936201,1721685032301,-10718.28232934,0.00010959,2]
[332936202,1721685032456,-1800.0,0.00010959,2]
[332936210,1721685037667,-5206.38767066,0.00010959,2]
[332936211,1721685037677,-1250.0,0.00011,2]
[332936212,1721685037687,-700.0,0.00011082,2]
[332936213,1721685037696,-700.0,0.00011082,2]
[332936214,1721685037706,-200.0,0.00011129,2]
[332936215,1721685037715,-235.18,0.00011317,2]
[332936216,1721685037725,-4256.06,0.00011317,2]
[332936217,1721685037735,-2697.187235,0.00011452,2]
[332936218,1721685037744,-2697.187236,0.00011452,2]
[332936219,1721685037754,-2697.187235,0.00011595,2]
[332936220,1721685037764,-2697.187236,0.00011595,2]
[332936221,1721685037774,-2697.187235,0.00011738,2]
[332936222,1721685037783,-2697.187236,0.00011738,2]
[332936223,1721685037793,-11708.95878305,0.00011781,2]
[332936224,1721685037803,-326.1625,0.00011796,2]
[332936225,1721685037812,-5232.4873,0.000118,2]
[332936226,1721685037822,-4336.3909,0.000118,2]
[332936227,1721685037831,-162.30891768,0.000118,2]
[332936228,1721685037840,-1000.0,0.000118,2]
[332936229,1721685037849,-438.52115457,0.000118,2]
[332936230,1721685037859,-2697.187235,0.00011881,2]
[332936231,1721685037868,-2697.187236,0.00011881,2]
[332936232,1721685037878,-9643.41315946,0.00011896,2]
[332936233,1721685037891,-9324.97,0.00011896,2]
[332936234,1721685037902,-20231.15397264,0.00011896,2]
[332936235,1721685037927,-17550.4999998,0.00011896,2]
[332936236,1721685037946,-678.46643896,0.00011896,2]
[332936237,1721685037957,-680.9102,0.00011896,2]
[332936238,1721685037979,-1015.57365664,0.00011896,2]
[332936370,1721685039574,-2010.0,0.00011896,2]
[332936385,1721685039726,-932.76241597,0.00011896,2]
[332936388,1721685039737,-466.51281727,0.00011896,2]
[332936390,1721685039748,-1594.4435325,0.00011896,2]
[332936402,1721685039874,-2242.06213766,0.00011896,2]
[332936404,1721685039883,-11813.0543873,0.00011896,2]
[332936406,1721685039894,-5782.0796575,0.00011896,2]
[332936408,1721685039904,-10737.6707476,0.00011896,2]
[332936410,1721685039913,-10023.18900478,0.00011897,2]
[332936412,1721685039924,-3679.93107749,0.00011897,2]
[332936414,1721685039934,-150.01,0.00011899,2]
[332936416,1721685039943,-69444.75764106,0.000119,2]
[332936417,1721685039954,-9346.63789685,0.000119,2]
[332936423,1721685040000,-2454.94273917,0.000119,2]
[332936425,1721685040011,-1352.74328221,0.000119,2]
[332936427,1721685040022,-1180.22303273,0.000119,2]
[332936429,1721685040033,-26044.72858426,0.000119,2]
[332936702,1721685043392,-1709.20227209,0.000119,2]
[332936703,1721685043501,-1919.52883686,0.000119,2]
[332936704,1721685043512,-1893045.65819991,0.000119,2]
[332936705,1721685043523,-1881.88653853,0.000119,2]
[332937902,1721685872888,9.65895978,9.036e-05,2]
[332937903,1721685872909,202.00104022,9.036e-05,2]
[332937904,1721685925876,675.69,9.036e-05,2]
[332937961,1721686109094,901.9,9.036e-05,2]
[332938046,1721686237794,-600.0,0.0001026,2]
[332938047,1721686237803,-248.98131036,0.0001055,2]
[332938048,1721686237815,-1.01868964,0.0001055,2]
[332938049,1721686237824,-300.0,0.00010906,2]
[332938050,1721686237834,-1000.0,0.00010906,2]
[332938051,1721686237844,-16756.65459927,0.00010907,2]
[332938052,1721686237857,-1232.90285437,0.00010907,2]
[332938053,1721686237876,-4208.42254636,0.00010907,2]
[332938054,1721686237885,-305.10188829,0.00010953,2]
[332938055,1721686237895,-369.85262396,0.00010953,2]
[332938056,1721686237905,-7723.28078192,0.00010953,2]
[332938071,1721686240254,-867.99999999,0.00010975,5]
[332938072,1721686240266,-632.00000001,0.00010975,5]
[332938073,1721686240276,-836.96650999,0.00010998,2]
[332938074,1721686240287,-163.03349001,0.00010998,2]
[332938075,1721686240296,-1250.0,0.00011,2]
[332938076,1721686240306,-316.81650998,0.00011082,2]
[332938103,1721686240610,-283.18349002,0.00011082,2]
[332938105,1721686240620,-1958.87320727,0.00011105,2]
[332938107,1721686240630,-298.26312183,0.00011105,2]
[332938109,1721686240640,-4937.07172546,0.00011205,2]
[332938111,1721686240649,-211.66,0.000113,2]
[332938113,1721686240659,-2206.29679381,0.00011321,2]
[332938114,1721686240668,-1052.3544779,0.00011357,2]
[332938116,1721686240679,-3000.0,0.0001178,2]
[332938119,1721686240689,-11708.95878305,0.00011781,2]
[332938120,1721686240699,-990.8623,0.000118,2]
[332938122,1721686240709,-199.01748312,0.000118,2]
[332938124,1721686240719,-2160.275978,0.000118,2]
[332938126,1721686240728,-220.02,0.00011808,2]
[332938128,1721686240738,-600.0,0.0001183,2]
[332938130,1721686240747,-202.63817161,0.0001185,2]
[332938132,1721686240756,-371.51160251,0.00011896,2]
[332938134,1721686240766,-184.3781258,0.00011896,2]
[332938135,1721686240775,-44178.7559505,0.00011896,2]
[332938137,1721686240785,-1040.7049346,0.00011896,2]
[332938139,1721686240795,-3095.6237766,0.00011896,2]
[332938141,1721686240804,-6210.3855438,0.00011896,2]
[332938143,1721686240814,-1018670.91052624,0.000119,2]
[332938363,1721686242777,-1255.06367634,0.000119,2]
[332938367,1721686242791,-341.65759013,0.000119,2]
[332938371,1721686242803,-21982.45782378,0.000119,2]
[332938374,1721686242815,-5967.57370409,0.000119,2]
[332938378,1721686242826,-9640.10867753,0.000119,2]
[332938387,1721686242885,-748.63230573,0.000119,2]
[332938389,1721686242897,-3711.78774979,0.000119,2]
[332938391,1721686242908,-6020.50980002,0.000119,2]
[332938394,1721686242919,-1570.55517767,0.000119,2]
[332938404,1721686243012,-650.36277005,0.000119,2]
[332938408,1721686243039,-839.10109103,0.000119,2]
[332938410,1721686243051,-6459.35253181,0.000119,2]
[332938412,1721686243062,-180204.26649294,0.000119,2]
[332938414,1721686243073,-286.93626806,0.000119,2]
[332938415,1721686243084,-715.36994382,0.000119,2]
[332938416,1721686243099,-831.48450349,0.000119,2]
[332938417,1721686243118,-16737.47181646,0.000119,2]
[332938418,1721686243129,-7091.87739909,0.000119,2]
[332938419,1721686243139,-1599.08934919,0.000119,2]
[332938420,1721686243150,-873.04153788,0.000119,2]
[332938421,1721686243162,-443.07349567,0.000119,2]
[332938422,1721686243174,-3593.78666846,0.000119,2]
[332938423,1721686243185,-931.13278959,0.000119,2]
[332938424,1721686243207,-427.18428536,0.000119,2]
[332938425,1721686243218,-537.88,0.000119,2]
[332938426,1721686243230,-768.44720034,0.000119,2]
[332938700,1721686245828,-3666.82998998,0.000119,2]
[332938702,1721686245840,-596.79156854,0.000119,2]
[332938705,1721686245853,-956.17199593,0.000119,2]
[332938707,1721686245865,-2353.21410219,0.000119,2]
[332938709,1721686245876,-1000.54103258,0.000119,2]
[332938711,1721686245888,-1568.3092,0.000119,2]
[332938714,1721686245899,-1217.5824999,0.000119,2]
[332938773,1721686246437,-30861.97877135,0.000119,2]
[332938776,1721686246448,-3693.93006249,0.000119,2]
[332938778,1721686246459,-6378.68035242,0.000119,2]
[332938820,1721686246471,-12571.36622906,0.000119,2]
[332938821,1721686246900,-15461.51814751,0.000119,2]
[332938822,1721686246912,-585.79333653,0.000119,2]
[332938823,1721686246923,-5143.26,0.000119,2]
[332938824,1721686246936,-581.670534,0.000119,2]
[332938825,1721686246948,-346.76974357,0.000119,2]
[332938826,1721686246959,-4281.62023915,0.000119,2]
[332938827,1721686246971,-2172.37464321,0.000119,2]
[332938828,1721686246982,-1582.40326166,0.000119,2]
[332938829,1721686246993,-1740.74654837,0.000119,2]
[332938830,1721686247005,-430.18684934,0.000119,2]
[332938832,1721686247016,-11753.76194839,0.000119,2]
[332938834,1721686247027,-77806.62639869,0.000119,2]
[332938836,1721686247038,-1015.91279629,0.000119,2]
[332938839,1721686247050,-8388.26784103,0.000119,2]
[332938841,1721686247061,-2563.31968009,0.000119,2]
[332938843,1721686247073,-11823.59982305,0.000119,2]
[332938845,1721686247084,-1671.17631581,0.000119,2]
[332938847,1721686247095,-345.87369942,0.000119,2]
[332938850,1721686247108,-430.09096335,0.000119,2]
[332938852,1721686247119,-27799.89231496,0.000119,2]
[332938854,1721686247130,-2191823.01496358,0.000119,2]
[332938856,1721686247142,-473.62789852,0.000119,2]
[332938859,1721686247153,-506.28464956,0.000119,2]
[332938861,1721686247164,-3885.10398628,0.000119,2]
[332938863,1721686247175,-4349.09017876,0.000119,2]
[332938865,1721686247187,-1862.13435004,0.000119,2]
[332938867,1721686247199,-2439.94300744,0.000119,2]
[332938869,1721686247211,-553.56974129,0.000119,2]
[332938872,1721686247222,-458.27649239,0.000119,2]
[332939027,1721686411614,231.34,8.747e-05,2]
[332939028,1721686463826,1105.68970339,8.747e-05,2]
[332939035,1721687001073,219.77,8.219e-05,2]
[332939111,1721687431983,-1000.0,9.969e-05,2]
[332939112,1721687431997,-1000.0,0.0001,2]
[332939113,1721687432007,-1233.89,0.0001004,2]
[332939114,1721687432016,-5400.14,0.00010093,2]
[332939115,1721687432026,-2655.27,0.00010405,2]
[332939116,1721687432036,-2655.27,0.00010407,2]
[332939117,1721687432045,-2655.27,0.0001041,2]
[332939118,1721687432055,-2655.27,0.00010413,2]
[332939119,1721687432065,-150.0,0.00010415,2]
[332939120,1721687432075,-2655.27,0.00010416,2]
[332939121,1721687432085,-449.99,0.00010416,2]
[332939122,1721687432095,-22503.07,0.00010416,2]
[332939123,1721687432105,-2655.27,0.00010418,2]
[332939124,1721687432115,-200.0,0.00010421,2]
[332939125,1721687432125,-2655.27,0.00010421,2]
[332939126,1721687432135,-2348.02,0.00010421,2]
[332939127,1721687432146,-2655.27,0.00010424,2]
[332939128,1721687432157,-150.99,0.00010424,2]
[332939129,1721687432167,-2655.27,0.00010427,2]
[332939130,1721687432177,-2655.27,0.00010429,2]
[332939131,1721687432187,-2655.27,0.00010432,2]
[332939132,1721687432197,-2655.27,0.00010435,2]
[332939133,1721687432206,-2655.27,0.00010438,2]
[332939134,1721687432216,-2655.27,0.0001044,2]
[332939135,1721687432226,-2655.27,0.00010443,2]
[332939136,1721687432236,-2655.27,0.00010446,2]
[332939137,1721687432245,-2655.27,0.00010449,2]
[332939138,1721687432254,-2655.27,0.00010451,2]
[332939139,1721687432264,-2655.27,0.00010454,2]
[332939140,1721687432274,-2655.27,0.00010457,2]
[332939141,1721687432284,-219.77,0.00010478,2]
[332939142,1721687432294,-1500.0,0.00010602,2]
[332939143,1721687432304,-1047.6287417,0.00010602,2]
[332939144,1721687432314,-14008.92854198,0.00010602,2]
[332939145,1721687432324,-172.34,0.00010625,2]
[332939146,1721687432333,-150.0,0.00010701,2]
[332939147,1721687432343,-170.504,0.00010839,2]
[332939148,1721687432353,-170.504,0.00010888,2]
[332939149,1721687432363,-400.0,0.000109,3]
[332939150,1721687432372,-170.504,0.00010938,2]
[332939151,1721687432382,-5608.94443968,0.00010953,2]
[332939152,1721687432391,-155.66736473,0.00010953,2]
[332939153,1721687432401,-298.26312183,0.00010953,2]
[332939154,1721687432411,-202.49507493,0.00010953,2]
[332939155,1721687432421,-1135.20848046,0.00010953,2]
[332939156,1721687432431,-297.93258435,0.00010953,2]
[332939157,1721687432441,-3115.19689425,0.00010953,2]
[332939158,1721687432451,-1500.0,0.00010959,5]
[332939159,1721687432460,-250.0,0.00010959,2]
[332939160,1721687432470,-566.64,0.00010959,2]
[332939161,1721687432480,-170.504,0.00010988,2]
[332939162,1721687432491,-639.41467372,0.00011,2]
[332939163,1721687432501,-900.0,0.00011,4]
[332939164,1721687432511,-170.504,0.00011038,2]
[332939165,1721687432522,-2624.24139058,0.0001109,2]
[332939166,1721687432532,-1400.0,0.000111,4]
[332939167,1721687432541,-4114.22643789,0.00011105,2]
[332939168,1721687432551,-202.63817161,0.00011105,2]
[332939169,1721687432561,-155.0,0.00011105,2]
[332939170,1721687432571,-371.51160251,0.00011105,2]
[332939171,1721687432581,-227.52468246,0.00011105,2]
[332939172,1721687432593,-363.71380104,0.00011105,2]
[332939173,1721687432603,-1324.09773323,0.00011105,2]
[332939174,1721687432613,-293.03052447,0.00011105,2]
[332939175,1721687432622,-1800.0,0.000112,4]
[332939176,1721687432632,-652.74964097,0.00011206,2]
[332939177,1721687432642,-155.0,0.00011206,2]
[332939178,1721687432651,-652.74964097,0.00011206,2]
[332939180,1721687432661,-1000.0,0.00011215,2]
[332939181,1721687432671,-2300.0,0.000113,4]
[332939183,1721687432680,-196.87533747,0.00011324,2]
[332939184,1721687432690,-400.0,0.000114,4]
[332939185,1721687432700,-223.868134,0.00011452,2]
[332939186,1721687432711,-365.83008,0.00011452,2]
[332939187,1721687432721,-614.560492,0.00011452,2]
[332939188,1721687432732,-328.996787,0.00011452,2]
[332939189,1721687432744,-400.0,0.000115,4]
[332939190,1721687432754,-155.0,0.00011525,2]
[332939191,1721687432765,-365.83008,0.00011595,2]
[332939192,1721687432775,-614.560492,0.00011595,2]
[332939193,1721687432786,-328.996787,0.00011595,2]
[332939194,1721687432796,-400.0,0.000116,4]
[332939195,1721687432811,-1120.40108999,0.00011662,2]
[332939196,1721687432822,-1095.12986045,0.00011662,2]
[332939197,1721687432832,-327.775,0.00011681,2]
[332939198,1721687432843,-9770.5726,0.000117,2]
[332939199,1721687432853,-252.98679953,0.000117,2]
[332939200,1721687432863,-400.0,0.000117,4]
[332939201,1721687432873,-252.9867995,0.00011725,2]
[332939202,1721687432886,-365.83008,0.00011738,2]
[332939203,1721687432896,-614.560492,0.00011738,2]
[332939204,1721687432906,-328.996787,0.00011738,2]
[332939205,1721687432916,-252.9867995,0.0001175,2]
[332939206,1721687432926,-252.9867995,0.00011775,2]
[332939207,1721687432936,-11708.95878305,0.00011781,2]
[332939208,1721687432947,-55132.0,0.00011781,2]
[332939209,1721687432958,-30094.889,0.00011796,2]
[332939210,1721687432968,-502.09744113,0.000118,2]
[332939211,1721687432980,-502.09744114,0.000118,2]
[332939212,1721687432992,-600.0,0.000118,2]
[332939213,1721687433002,-3960.5705,0.000118,2]
[332939214,1721687433012,-233306.3657,0.000118,2]
[332939215,1721687433022,-1000.0,0.000118,2]
[332939216,1721687433032,-944.7646,0.000118,2]
[332939217,1721687433042,-169.84462217,0.000118,2]
[332939218,1721687433054,-166.339282,0.000118,2]
[332939219,1721687433064,-162.30891768,0.000118,2]
[332939220,1721687433075,-252.9867995,0.000118,2]